fUSD/lending_fUSD_20240117
["ID","MTS","AMOUNT","RATE_DAILY","PERIOD"]
[311929207,1705504256406,-203.0152013,0.00028,2]
[311929208,1705504256415,-688.65058817,0.00028,2]
[311929209,1705504256425,-204.16858498,0.00028,2]
[311929210,1705504256434,-500.0,0.00028215,2]
[311929211,1705504256443,-200.0,0.00028215,2]
[311929212,1705504256453,-800.0,0.00028215,7]
[311929213,1705504256462,-846.30146981,0.00028219,5]
[311929214,1705504256475,-1475.19358611,0.00028219,2]
[311929215,1705504256497,-500.0,0.00022191,2]
[311929216,1705504256507,-478.73641389,0.00028219,2]
[311929217,1705504256516,-5710.5877154,0.00028219,2]
[311929218,1705504256526,-2884.46390675,0.00028219,5]
[311929219,1705504256536,-283.9,0.00028219,2]
[311929220,1705504256546,-1442.07,0.00028219,2]
[311929221,1705504256556,-161.77,0.00028318,2]
[311929222,1705504256566,-1460.56121354,0.00028342,2]
[311929223,1705504256578,-425.87028313,0.00028342,2]
[311929224,1705504256588,-549.99916335,0.00028342,2]
[311929225,1705504256598,-2003.42707548,0.00028342,2]
[311929226,1705504256607,-13081.12632126,0.000284,2]
[311929227,1705504256617,-322.79019141,0.000285,2]
[311929228,1705504256626,-1000.0,0.000285,2]
[311929229,1705504256635,-9367.06157577,0.00028556,2]
[311929230,1705504256644,-200.0,0.00028589,2]
[311929231,1705504256653,-1360.28989868,0.0002862,4]
[311929232,1705504257130,-500.0,0.00021917,2]
[311929233,1705504257140,-500.0,0.00021917,2]
[311929234,1705504257149,-500.0,0.00021917,2]
[311929235,1705504257159,-253.4,0.00021917,2]
[311929236,1705504257168,-99.44829134,0.00021917,2]
[311929237,1705504257180,-400.55170866,0.00021917,2]
[311929238,1705504257190,-186.70579134,0.00021917,2]
[311929239,1705504257202,-313.29420866,0.00021917,2]
[311929240,1705504257212,-500.0,0.00021917,2]
[311929241,1705504257222,-500.0,0.00022191,2]
[311929242,1705504257232,-500.0,0.00022191,2]
[311929243,1705504257241,-500.0,0.00022191,2]
[311929244,1705504257250,-196.97036308,0.00022465,2]
[311929245,1705504257262,-303.02963692,0.00022465,2]
[311929246,1705504257271,-500.0,0.00022465,2]
[311929247,1705504257281,-196.17,0.00022465,2]
[311929248,1705504257291,-77.54007521,0.00022739,2]
[311929249,1705504257303,-422.45992479,0.00022739,2]
[311929250,1705504257312,-500.0,0.00023013,2]
[311929251,1705504257323,-500.0,0.00023013,2]
[311929252,1705504257332,-54.2409756,0.00023287,2]
[311929253,1705504257344,-445.7590244,0.00023287,2]
[311929254,1705504257353,-325.71,0.00023287,2]
[311929255,1705504257363,-642.86,0.00023561,2]
[311929256,1705504257372,-500.0,0.00023835,2]
[311929257,1705504257382,-500.0,0.00024109,2]
[311929258,1705504257391,-500.0,0.00024383,2]
[311929259,1705504257401,-500.0,0.00024657,2]
[311929260,1705504257411,-500.0,0.00024931,2]
[311929261,1705504257420,-500.0,0.00025205,2]
[311929262,1705504257430,-500.0,0.00025479,2]
[311929263,1705504257439,-500.0,0.00025753,2]
[311929264,1705504257449,-500.0,0.00026027,2]
[311929265,1705504257459,-167.53321346,0.00026301,2]
[311929266,1705504257473,-332.46678654,0.00026301,2]
[311929267,1705504257482,-500.0,0.00026575,2]
[311929268,1705504257492,-500.0,0.00026849,2]
[311929269,1705504257502,-500.0,0.00027123,2]
[311929270,1705504257512,-500.0,0.00027397,2]
[311929271,1705504257522,-278.86,0.00027671,2]
[311929272,1705504257532,-927.35632391,0.0002862,4]
[311929273,1705504257543,-150.0,0.00028632,2]
[311929274,1705504257553,-150.0,0.00028632,2]
[311929275,1705504257562,-150.0,0.00028632,2]
[311929276,1705504257573,-150.0,0.00028632,2]
[311929277,1705504257582,-150.0,0.00028632,2]
[311929278,1705504257593,-746.64543011,0.00028682,2]
[311929279,1705504257606,-93.35456989,0.00028682,2]
[311929280,1705504257616,-728.0,0.000287,2]
[311929281,1705504257626,-1000.0,0.000287,2]
[311929282,1705504257636,-155.0,0.00028767,2]
[311929283,1705504257645,-1028.00397672,0.00028928,2]
[311929284,1705504257654,-1000.92699972,0.00028928,2]
[311929285,1705504257664,-1885.14172653,0.00029,5]
[311929286,1705504257673,-118.71448037,0.00029,3]
[311929287,1705504257685,-331.28551963,0.00029,3]
[311929288,1705504257695,-5000.0,0.00029048,2]
[311929289,1705504257705,-1092.02425308,0.00029048,2]
[311929290,1705504257718,-668.90836217,0.00029048,2]
[311929291,1705504257730,-3239.06738475,0.00029048,2]
[311929292,1705504257740,-5000.0,0.00029048,2]
[311929293,1705504257749,-780.00821779,0.00029048,2]
[311929294,1705504257761,-4219.99178221,0.00029048,2]
[311929295,1705504257773,-3000.36960892,0.00029048,2]
[311929296,1705504257785,-1999.63039108,0.00029048,2]
[311929297,1705504257795,-165.95093,0.00029133,2]
[311929298,1705504257805,-2422.781945,0.00029133,2]
[311929299,1705504257815,-3551.916548,0.00029133,2]
[311929300,1705504257825,-490.875011,0.00029133,2]
[311929301,1705504257838,-182.554127,0.00029133,2]
[311929302,1705504257848,-78.25643754,0.00029295,2]
[311929303,1705504257860,-421.74356246,0.00029295,2]
[311929304,1705504257870,-1523.76042362,0.000294,2]
[311929305,1705504257879,-2422.781945,0.00029497,2]
[311929306,1705504257889,-3551.916548,0.00029497,2]
[311929307,1705504257899,-490.875011,0.00029497,2]
[311929308,1705504257909,-187.78095067,0.000295,3]
[311929309,1705504257919,-3880.73491074,0.000295,2]
[311929310,1705504257931,-46119.26508926,0.000295,2]
[311929311,1705504257941,-278.4388778,0.00029518,5]
[311929312,1705504257950,-161.77,0.00029564,2]
[311929313,1705504257960,-3141.50934462,0.00029713,2]
[311929314,1705504257974,-6225.55223115,0.00029713,2]
[311929315,1705504257983,-208.0,0.00029791,10]
[311929316,1705504257993,-175.46672634,0.000298,2]
[311929317,1705504258003,-17003.93749484,0.000298,5]
[311929318,1705504258014,-5501.20198283,0.000298,5]
[311929319,1705504258031,-2037.28440276,0.000298,5]
[311929320,1705504258043,-37761.09901957,0.000298,5]
[311929321,1705504258052,-2422.781945,0.00029861,2]
[311929322,1705504258062,-3551.916548,0.00029861,2]
[311929323,1705504258071,-490.875011,0.00029861,2]
[311929324,1705504258081,-500.0,0.00029868,2]
[311929325,1705504258091,-1061.20865654,0.00029869,5]
[311929326,1705504258100,-181.27282392,0.00029869,5]
[311929327,1705504258110,-4610.06557496,0.00029869,7]
[311929328,1705504258120,-9219.49399672,0.00029869,7]
[311929329,1705504258131,-4794.95640234,0.00029869,5]
[311929330,1705504258140,-249.64613101,0.00029869,5]
[311929331,1705504258150,-670.59604974,0.00029869,5]
[311929332,1705504258160,-476.39177881,0.00029869,5]
[311929333,1705504258170,-230.35687073,0.00029869,5]
[311929334,1705504258180,-1316.86921433,0.00029869,5]
[311929335,1705504258190,-187.62113231,0.00029869,5]
[311929336,1705504258199,-268.2177642,0.00029869,5]
[311929337,1705504258210,-551.83285486,0.00029869,5]
[311929338,1705504258222,-833.59151246,0.00029869,5]
[311929339,1705504258232,-300.0,0.00029999,2]
[311929340,1705504258241,-300.0,0.00029999,2]
[311929341,1705504258251,-300.0,0.00029999,2]
[311929342,1705504258261,-300.0,0.00029999,2]
[311929343,1705504258270,-300.0,0.00029999,2]
[311929344,1705504258280,-300.0,0.00029999,2]
[311929345,1705504258291,-324.79163949,0.00029999,2]
[311929346,1705504258301,-500.0,0.00029999,2]
[311929347,1705504258312,-100000.0,0.0003,2]
[311929348,1705504258322,-770.58135396,0.0003,2]
[311929349,1705504258331,-16442.78433139,0.0003,2]
[311929350,1705504258341,-1574.60468839,0.0003,2]
[311929351,1705504258350,-155.0,0.0003,2]
[311929352,1705504258359,-763.42785941,0.0003,4]
[311929353,1705504258369,-4200.89371992,0.0003,2]
[311929354,1705504258386,-258.07524292,0.00021917,2]
[311929355,1705504258398,-347.72475708,0.00021917,2]
[311929356,1705504258408,-5434.63861018,0.0003,2]
[311929357,1705504258418,-1169.05574706,0.0003,4]
[311929358,1705504258429,-1030.84,0.0003,4]
[311929359,1705504258440,-1422.02946766,0.0003,4]
[311929360,1705504258452,-453.91502216,0.0003,4]
[311929361,1705504258494,-500.0,0.00021917,2]
[311929362,1705504258503,-22593.29750318,0.0003,4]
[311929363,1705504258513,-582.41012676,0.0003,2]
[311929364,1705504258522,-1968.91329711,0.0003,2]
[311929365,1705504258532,-2500.0,0.0003,2]
[311929366,1705504258542,-99935.73809695,0.0003,2]
[311929367,1705504258583,-2002.18644491,0.0003,2]
[311929368,1705504258595,-5749.57214752,0.0003,2]
[311929369,1705504258606,-1980.22,0.0003,2]
[311929370,1705504258618,-42735.65588292,0.0003,2]
[311929371,1705504258628,-2162.809944,0.0003,4]
[311929372,1705504258638,-691.6211631,0.0003,2]
[311929373,1705504258647,-11382.0,0.0003,30]
[311929374,1705504258658,-30038.02778269,0.0003,2]
[311929375,1705504258668,-1379.10538633,0.0003,4]
[311929376,1705504258680,-23482.78889771,0.0003,2]
[311929377,1705504258690,-200.0,0.0003,2]
[311929378,1705504258700,-683.51263227,0.0003,4]
[311929379,1705504258710,-837.67349251,0.0003,2]
[311929380,1705504258722,-442.62977589,0.0003,4]
[311929381,1705504258731,-5000.0,0.0003,2]
[311929382,1705504258741,-152.70971941,0.0003,9]
[311929383,1705504258750,-152.70971941,0.0003,11]
[311929384,1705504258759,-152.70971941,0.0003,9]
[311929385,1705504258769,-152.70971941,0.0003,10]
[311929386,1705504258779,-20719.0305921,0.0003,4]
[311929387,1705504258790,-609.62184281,0.0003,4]
[311929388,1705504258799,-152.94,0.0003,2]
[311929389,1705504258809,-3000.0,0.0003,2]
[311929390,1705504258819,-3000.0,0.0003,2]
[311929391,1705504258829,-1000.0,0.000301,2]
[311929392,1705504258838,-5000.0,0.00030137,2]
[311929393,1705504258848,-153.84,0.00030137,2]
[311929394,1705504258857,-155.0,0.00030137,2]
[311929395,1705504258867,-84.58593232,0.00030144,2]
[311929396,1705504258883,-287.47406768,0.00030144,2]
[311929397,1705504258892,-477.93343881,0.00030225,2]
[311929398,1705504258916,-1944.84850619,0.00030225,2]
[311929399,1705504258925,-3551.916548,0.00030225,2]
[311929400,1705504258935,-490.875011,0.00030225,2]
[311929401,1705504258944,-500.0,0.00030374,2]
[311929402,1705504258958,-2287.64622259,0.0003038,5]
[311929403,1705504258968,-190.0,0.00030584,2]
[311929404,1705504258977,-182.554127,0.00030589,2]
[311929405,1705504258987,-2422.781945,0.00030589,2]
[311929406,1705504258996,-3551.916548,0.00030589,2]
[311929407,1705504259005,-490.875011,0.00030589,2]
[311929408,1705504259015,-3000.0,0.0003063,2]
[311929409,1705504259024,-500.0,0.00030656,2]
[311929410,1705504259034,-300.0,0.00030656,2]
[311929411,1705504259042,-500.0,0.00030657,2]
[311929412,1705504259052,-500.0,0.00030657,2]
[311929413,1705504259061,-500.0,0.00030657,2]
[311929414,1705504259070,-500.0,0.00030657,2]
[311929415,1705504259079,-400.0,0.00030657,2]
[311929416,1705504259089,-500.0,0.00030657,2]
[311929417,1705504259098,-500.0,0.00030657,2]
[311929418,1705504259107,-500.0,0.00030657,2]
[311929419,1705504259117,-500.0,0.00030657,2]
[311929420,1705504259130,-500.0,0.00030657,2]
[311929421,1705504259139,-500.0,0.00030657,2]
[311929422,1705504259148,-500.0,0.00030657,2]
[311929423,1705504259157,-500.0,0.00030657,2]
[311929424,1705504259166,-500.0,0.00030657,2]
[311929425,1705504259174,-500.0,0.00030657,2]
[311929426,1705504259183,-500.0,0.00030657,2]
[311929427,1705504259192,-500.0,0.00030657,2]
[311929428,1705504259201,-500.0,0.00030657,2]
[311929429,1705504259210,-500.0,0.00030657,2]
[311929430,1705504259221,-500.0,0.00030657,2]
[311929431,1705504259231,-500.0,0.00030657,2]
[311929432,1705504259240,-500.0,0.00030657,2]
[311929433,1705504259249,-500.0,0.00030657,2]
[311929434,1705504259259,-500.0,0.00030657,2]
[311929435,1705504259268,-500.0,0.00030657,2]
[311929436,1705504259277,-500.0,0.00030657,2]
[311929437,1705504259286,-500.0,0.00030657,2]
[311929438,1705504259295,-500.0,0.00030657,2]
[311929439,1705504259305,-500.0,0.00030657,2]
[311929440,1705504259314,-500.0,0.00030657,2]
[311929441,1705504259323,-500.0,0.00030657,2]
[311929442,1705504259332,-500.0,0.00030657,2]
[311929443,1705504259342,-500.0,0.00030657,2]
[311929444,1705504259351,-500.0,0.00030657,2]
[311929445,1705504259413,-500.0,0.00030657,2]
[311929446,1705504259422,-500.0,0.00030657,2]
[311929447,1705504259432,-500.0,0.00030657,2]
[311929448,1705504259441,-500.0,0.00030657,2]
[311929449,1705504259450,-500.0,0.00030657,2]
[311929450,1705504259459,-500.0,0.00030657,2]
[311929451,1705504259469,-500.0,0.00030657,2]
[311929452,1705504259477,-500.0,0.00030657,2]
[311929453,1705504259486,-500.0,0.00030657,2]
[311929454,1705504259495,-500.0,0.00030657,2]
[311929455,1705504259504,-332.64069215,0.00030657,2]
[311929456,1705504259517,-167.35930785,0.00030657,2]
[311929457,1705504259526,-500.0,0.00030657,2]
[311929458,1705504259535,-500.0,0.00030657,2]
[311929459,1705504259544,-500.0,0.00030657,2]
[311929460,1705504259553,-500.0,0.00030657,2]
[311929461,1705504259562,-500.0,0.00030657,2]
[311929462,1705504259571,-250.0,0.00030657,2]
[311929463,1705504259580,-500.0,0.00030657,2]
[311929464,1705504259590,-37.02403141,0.00030657,2]
[311929465,1705504259605,-462.97596859,0.00030657,2]
[311929466,1705504259615,-500.0,0.00030657,2]
[311929467,1705504259624,-500.0,0.00030657,2]
[311929468,1705504259634,-239.23285003,0.00030657,2]
[311929469,1705504259645,-260.76714997,0.00030657,2]
[311929470,1705504259655,-48.48090956,0.00030657,2]
[311929471,1705504259667,-451.51909044,0.00030657,2]
[311929472,1705504259677,-99.7082685,0.00030657,2]
[311929473,1705504259691,-400.2917315,0.00030657,2]
[311929474,1705504259701,-500.0,0.00030657,2]
[311929475,1705504259711,-500.0,0.00030657,2]
[311929476,1705504259723,-500.0,0.00030657,2]
[311929477,1705504259732,-382.32333885,0.00030657,2]
[311929478,1705504259830,-408.18475934,0.00021917,2]
[311929479,1705504259841,-91.81524066,0.00021917,2]
[311929480,1705504259851,-416.88975934,0.00021917,2]
[311929481,1705504259865,-83.11024066,0.00021917,2]
[311929482,1705504259875,-500.0,0.00021917,2]
[311929483,1705504259884,-416.88975934,0.00021917,2]
[311929486,1705504310410,500.0,0.00021917,7]
[311929487,1705504444283,543.80323094,0.00021917,7]
[311929490,1705504550188,500.0,0.00022259,7]
[311929491,1705504550513,500.0,0.00022656,7]
[311929492,1705504550870,500.0,0.00023053,7]
[311929493,1705504551307,500.0,0.0002345,7]
[311929494,1705504551618,500.0,0.00023847,7]
[311929495,1705504551956,500.0,0.00024244,7]
[311929496,1705504552362,500.0,0.00024641,7]
[311929497,1705504552688,500.0,0.00025038,7]
[311929498,1705504553031,500.0,0.00025435,7]
[311929499,1705504553341,500.0,0.00025832,7]
[311929500,1705504555896,500.0,0.00026229,7]
[311929501,1705504556051,500.0,0.00026626,7]
[311929503,1705504759524,500.0,0.00027,7]
[311929504,1705504806706,1002.09465771,0.00027,7]
[311929532,1705505431745,-494.57166909,0.00018111,2]
[311929533,1705505431756,-365.83,0.00018112,2]
[311929534,1705505431765,-155.0,0.00018155,2]
[311929535,1705505431774,-516.41480601,0.00018156,2]
[311929536,1705505431783,-4506.03275458,0.00018159,2]
[311929537,1705505431795,-11378.14006484,0.00018159,2]
[311929538,1705505431807,-21140.9652,0.00018159,2]
[311929539,1705505431818,-5727.19595612,0.00018159,2]
[311929540,1705505431829,-1277.78904127,0.00018159,2]
[311929541,1705505431943,-1432.18835877,0.00018159,2]
[311929558,1705505437888,-39927.76497495,0.00018159,2]
[311929559,1705505437963,-265.13252967,0.00018159,2]
[311929560,1705505438034,-97890.3279858,0.00018159,2]
[311929561,1705505438046,-832.0,0.00019997,2]
[311929562,1705505438056,-243.39,0.00020099,2]
[311929563,1705505438065,-250.0,0.00020112,2]
[311929564,1705505438076,-168.0,0.0002012,2]
[311929565,1705505438086,-157.06,0.00020199,2]
[311929566,1705505438097,-500.0,0.00020274,2]
[311929567,1705505438106,-365.83,0.00020376,2]
[311929568,1705505438116,-3067.86,0.00020439,2]
[311929569,1705505438126,-499.99,0.00020439,2]
[311929570,1705505438136,-157.06,0.00020463,2]
[311929571,1705505438145,-308.24,0.00020471,2]
[311929572,1705505438156,-150.02,0.0002049,2]
[311929573,1705505438165,-500.0,0.000205,2]
[311929574,1705505438175,-1892.3,0.00020548,2]
[311929575,1705505438185,-500.0,0.00020671,2]
[311929576,1705505438195,-6800.94,0.00020671,2]
[311929577,1705505438206,-308.24,0.00020686,2]
[311929578,1705505438216,-157.06,0.00020726,2]
[311929579,1705505438226,-727.75,0.00020799,2]
[311929580,1705505438235,-164.81,0.00020846,2]
[311929581,1705505438245,-150.02,0.00020876,2]
[311929582,1705505438255,-720.3,0.00020882,2]
[311929583,1705505438265,-308.24,0.00020902,2]
[311929584,1705505438275,-157.06,0.00020989,2]
[311929585,1705505438284,-500.0,0.00021068,2]
[311929587,1705505438294,-243.39,0.00021077,2]
[311929589,1705505438304,-308.24,0.00021117,2]
[311929591,1705505438313,-731.08,0.00021159,2]
[311929592,1705505438323,-721.89,0.00021159,2]
[311929595,1705505438332,-157.06,0.00021252,2]
[311929597,1705505438342,-403.15042321,0.00021259,2]
[311929598,1705505438351,-150.02,0.00021261,2]
[311929601,1705505438362,-308.24,0.00021333,2]
[311929603,1705505438371,-1427.04256855,0.00021416,2]
[311929605,1705505438380,-1427.04256855,0.00021416,2]
[311929606,1705505438390,-5346.08601909,0.00021416,2]
[311929609,1705505438399,-500.0,0.00021465,2]
[311929611,1705505438409,-536.15064755,0.00021516,2]
[311929613,1705505438419,-92923.56680934,0.00021516,2]
[311929614,1705505438428,-150.0,0.00021516,2]
[311929616,1705505438438,-221.4202,0.00021517,2]
[311929618,1705505438447,-100000.0,0.00021517,2]
[311929620,1705505438457,-729.7838,0.00021517,2]
[311929623,1705505438466,-4014.6754,0.00021517,2]
[311929625,1705505438477,-308.24,0.00021548,2]
[311929627,1705505438487,-802.88996223,0.00021617,2]
[311929629,1705505438497,-284.9744775,0.00021617,2]
[311929631,1705505438508,-240.0,0.00021644,2]
[311929633,1705505438518,-150.02,0.00021647,2]
[311929635,1705505438528,-155.49966614,0.00021695,2]
[311929637,1705505438539,-155.0,0.00021701,2]
[311929639,1705505438549,-207.0,0.00021756,2]
[311929641,1705505438560,-308.24,0.00021764,2]
[311929643,1705505438570,-6462.55808256,0.00021799,2]
[311929645,1705505438581,-3917.0007,0.000218,2]
[311929647,1705505438591,-19126.13858845,0.000218,2]
[311929649,1705505438601,-2390.39323209,0.00021807,2]
[311929651,1705505438611,-165.97418147,0.00021814,2]
[311929653,1705505438621,-178.80197064,0.00021814,2]
[311929655,1705505438631,-169.22902364,0.00021817,2]
[311929657,1705505438641,-500.0,0.00021862,2]
[311929659,1705505438650,-129339.16995834,0.000219,2]
[311929661,1705505438660,-505627.29609809,0.000219,2]
[311929663,1705505438670,-163.69478431,0.00021914,2]
[311929665,1705505438679,-1070.18909292,0.00021914,2]
[311929667,1705505438689,-374.60559964,0.00021914,2]
[311929669,1705505438699,-850.97273767,0.00021915,2]
[311929671,1705505438709,-285.27830433,0.00021915,2]
[311929673,1705505438718,-3038.48329408,0.00021915,2]
[311929675,1705505438728,-643.4185131,0.00021915,2]
[311929708,1705505439036,-164.70749797,0.00021915,2]
[311929711,1705505439055,-159.6783603,0.00021916,2]
[311929713,1705505439065,-155.0,0.00021916,2]
[311929715,1705505439075,-83.11024066,0.00021917,2]
[311929717,1705505439085,-961.26760734,0.00021917,2]
[311929719,1705505439095,-738.402504,0.00021917,2]
[311929721,1705505439104,-500.0,0.00021917,2]
[311929723,1705505439114,-500.0,0.00021917,2]
[311929725,1705505439126,-500.0,0.00021917,2]
[311929727,1705505439137,-633.45063922,0.00021917,2]
[311929729,1705505439147,-500.0,0.00021917,2]
[311929731,1705505439156,-500.0,0.00021917,2]
[311929733,1705505439165,-525.09,0.00021917,2]
[311929735,1705505439174,-500.0,0.00021917,2]
[311929737,1705505439184,-500.0,0.00021917,2]
[311929739,1705505439194,-500.0,0.00021917,2]
[311929741,1705505439203,-500.0,0.00021917,2]
[311929743,1705505439213,-974.56,0.00021917,2]
[311929746,1705505439223,-500.0,0.00021917,2]
[311929748,1705505439233,-500.0,0.00021917,2]
[311929749,1705505439242,-500.0,0.00021917,2]
[311929751,1705505439252,-500.0,0.00021917,2]
[311929754,1705505439263,-500.0,0.00021917,2]
[311929755,1705505439276,-500.0,0.00021917,2]
[311929757,1705505439286,-500.0,0.00021917,2]
[311929758,1705505439295,-500.0,0.00021917,2]
[311929759,1705505439306,-500.0,0.00021917,2]
[311929760,1705505439315,-500.0,0.00021917,2]
[311929761,1705505439325,-500.0,0.00021917,2]
[311929762,1705505439335,-500.0,0.00021917,2]
[311929763,1705505439345,-500.0,0.00021917,2]
[311929764,1705505439355,-500.0,0.00021917,2]
[311929766,1705505439365,-500.0,0.00021917,2]
[311929768,1705505439375,-500.0,0.00021917,2]
[311929770,1705505439385,-500.0,0.00021917,2]
[311929772,1705505439395,-500.0,0.00021917,2]
[311929774,1705505439404,-500.0,0.00021917,2]
[311929776,1705505439414,-151.54415404,0.00021917,2]
[311929778,1705505439425,-500.0,0.00021917,2]
[311929780,1705505439435,-500.0,0.00021917,2]
[311929782,1705505439445,-500.0,0.00021917,2]
[311929784,1705505439455,-500.0,0.00021917,2]
[311929786,1705505439465,-500.0,0.00021917,2]
[311929788,1705505439475,-500.0,0.00021917,2]
[311929790,1705505439484,-500.0,0.00021917,2]
[311929792,1705505439493,-500.0,0.00021917,2]
[311929795,1705505439503,-500.0,0.00021917,2]
[311929797,1705505439516,-500.0,0.00021917,2]
[311929799,1705505439525,-300.0,0.00021917,2]
[311929801,1705505439535,-300.0,0.00021917,2]
[311929803,1705505439544,-300.0,0.00021917,2]
[311929805,1705505439553,-300.0,0.00021917,2]
[311929806,1705505439562,-300.0,0.00021917,2]
[311929808,1705505439573,-300.0,0.00021917,2]
[311929811,1705505439582,-500.0,0.00021917,2]
[311929813,1705505439592,-300.0,0.00021917,2]
[311929815,1705505439602,-500.0,0.00021917,2]
[311929817,1705505439611,-500.0,0.00021917,2]
[311929819,1705505439621,-500.0,0.00021917,2]
[311929821,1705505439632,-500.0,0.00021917,2]
[311929823,1705505439641,-500.0,0.00021917,2]
[311929825,1705505439652,-500.0,0.00021917,2]
[311929827,1705505439661,-500.0,0.00021917,2]
[311929829,1705505439671,-500.0,0.00021917,2]
[311929831,1705505439681,-500.0,0.00021917,2]
[311929833,1705505439692,-500.0,0.00021917,2]
[311929835,1705505439702,-500.0,0.00021917,2]
[311929837,1705505439711,-500.0,0.00021917,2]
[311929839,1705505439721,-500.0,0.00021917,2]
[311929841,1705505439730,-500.0,0.00021917,2]
[311929843,1705505439742,-500.0,0.00021917,2]
[311929845,1705505439751,-500.0,0.00021917,2]
[311929847,1705505439763,-613.16329384,0.00021917,2]
[311929849,1705505439772,-500.0,0.00021917,2]
[311929851,1705505439783,-500.0,0.00021917,2]
[311929853,1705505439792,-500.0,0.00021917,2]
[311929855,1705505439802,-500.0,0.00021917,2]
[311929857,1705505439811,-500.0,0.00021917,2]
[311929859,1705505439821,-500.0,0.00021917,2]
[311929861,1705505439831,-500.0,0.00021917,2]
[311929863,1705505439840,-500.0,0.00021917,2]
[311929865,1705505439850,-500.0,0.00021917,2]
[311929867,1705505439860,-446.12992568,0.00021917,2]
[311929869,1705505439870,-500.0,0.00021917,2]
[311929871,1705505439880,-500.0,0.00021917,2]
[311929873,1705505439890,-500.0,0.00021917,2]
[311929875,1705505439900,-500.0,0.00021917,2]
[311929877,1705505439910,-500.0,0.00021917,2]
[311929879,1705505439920,-500.0,0.00021917,2]
[311929881,1705505439932,-500.0,0.00021917,2]
[311929883,1705505439944,-500.0,0.00021917,2]
[311929885,1705505439955,-500.0,0.00021917,2]
[311929887,1705505439966,-643.22632555,0.00021917,2]
[311929889,1705505439977,-500.0,0.00021917,2]
[311929891,1705505439990,-500.0,0.00021917,2]
[311929893,1705505440001,-373.65651452,0.00021917,2]
[311929896,1705505440018,-163.2110917,0.00021917,2]
[311929898,1705505440029,-500.0,0.00021917,2]
[311929900,1705505440042,-500.0,0.00021917,2]
[311929902,1705505440053,-500.0,0.00021917,2]
[311929904,1705505440063,-500.0,0.00021917,2]
[311929906,1705505440073,-500.0,0.00021917,2]
[311929908,1705505440084,-500.0,0.00021917,2]
[311929910,1705505440094,-545.27152662,0.00021917,2]
[311929912,1705505440104,-561.92221292,0.00021917,2]
[311929914,1705505440113,-500.0,0.00021917,2]
[311929916,1705505440124,-500.0,0.00021917,2]
[311929917,1705505440135,-500.0,0.00021917,2]
[311929919,1705505440145,-500.0,0.00021917,2]
[311929921,1705505440154,-500.0,0.00021917,2]
[311929922,1705505440164,-500.0,0.00021917,2]
[311929924,1705505440174,-500.0,0.00021917,2]
[311929926,1705505440183,-500.0,0.00021917,2]
[311929927,1705505440193,-500.0,0.00021917,2]
[311929929,1705505440202,-500.0,0.00021917,2]
[311929931,1705505440212,-500.0,0.00021917,2]
[311929932,1705505440221,-500.0,0.00021917,2]
[311929935,1705505440233,-518.99872134,0.00021917,2]
[311929938,1705505440242,-522.88247733,0.00021917,2]
[311929939,1705505440251,-500.0,0.00021917,2]
[311929941,1705505440264,-500.0,0.00021917,2]
[311929943,1705505440273,-500.0,0.00021917,2]
[311929945,1705505440283,-500.0,0.00021917,2]
[311929947,1705505440294,-500.0,0.00021917,2]